[Event "January 9 Early 2024"]
[Site "https://www.chess.com"]
[Date "2024.01.11"]
[Round "11"]
[White "Babayeva, Nasrin"]
[Black "Sadykov, Ramil"]
[Result "0-1"]
[Board "86"]
[TimeControl "180+1"]
[WhiteFideId "13416626"]
[BlackFideId "24113590"]
[WhiteElo "1834"]
[BlackElo "2603"]
[WhiteTeam "AZE"]
[BlackTeam "FID"]
[WhiteClock "0:00:38"]
[BlackClock "0:00:10"]

1. c4 {[%clk 0:03:00]}  g6 {[%clk 0:01:56]} 2. g3 {[%clk 0:02:59]}  h5 {[%clk 0:01:54]} 3. Nf3 {[%clk 0:02:41]}  b6 {[%clk 0:01:42]} 4. Bg2 {[%clk 0:02:40]}  Bb7 {[%clk 0:01:43]} 5. O-O {[%clk 0:02:38]}  c5 {[%clk 0:01:43]} 6. Nc3 {[%clk 0:02:36]}  Bg7 {[%clk 0:01:42]} 7. h4 {[%clk 0:02:31]}  Nf6 {[%clk 0:01:39]} 8. d4 {[%clk 0:02:29]}  cxd4 {[%clk 0:01:39]} 9. Nxd4 {[%clk 0:02:30]}  Bxg2 {[%clk 0:01:39]} 10. Kxg2 {[%clk 0:02:24]}  Qc8 {[%clk 0:01:38]} 11. Qd3 {[%clk 0:02:16]}  Nc6 {[%clk 0:01:35]} 12. f3 {[%clk 0:02:07]}  Nxd4 {[%clk 0:01:32]} 13. Qxd4 {[%clk 0:02:07]}  O-O {[%clk 0:01:33]} 14. e4 {[%clk 0:02:04]}  d6 {[%clk 0:01:26]} 15. Rb1 {[%clk 0:01:52]}  Qa6 {[%clk 0:01:08]} 16. b3 {[%clk 0:01:40]}  Nxe4 {[%clk 0:00:57]} 17. Qxe4 {[%clk 0:01:32]}  Bxc3 {[%clk 0:00:57]} 18. Rf2 {[%clk 0:01:24]}  Bf6 {[%clk 0:00:53]} 19. Bh6 {[%clk 0:01:19]}  Rfd8 {[%clk 0:00:50]} 20. Bg5 {[%clk 0:01:16]}  Bxg5 {[%clk 0:00:46]} 21. hxg5 {[%clk 0:01:17]}  e6 {[%clk 0:00:44]} 22. g4 {[%clk 0:01:13]}  Qa5 {[%clk 0:00:41]} 23. gxh5 {[%clk 0:01:08]}  Qxg5+ {[%clk 0:00:40]} 24. Qg4 {[%clk 0:01:08]}  Qxh5 {[%clk 0:00:39]} 25. Qxh5 {[%clk 0:01:06]}  gxh5 {[%clk 0:00:40]} 26. Rh1 {[%clk 0:01:06]}  d5 {[%clk 0:00:37]} 27. Rxh5 {[%clk 0:01:05]}  dxc4 {[%clk 0:00:37]} 28. bxc4 {[%clk 0:01:06]}  Rac8 {[%clk 0:00:37]} 29. Rh4 {[%clk 0:01:00]}  Rd3 {[%clk 0:00:30]} 30. Kh2 {[%clk 0:00:50]}  Kg7 {[%clk 0:00:28]} 31. Rg2+ {[%clk 0:00:47]}  Kf6 {[%clk 0:00:28]} 32. Rf4+ {[%clk 0:00:47]}  Ke7 {[%clk 0:00:28]} 33. Rg7 {[%clk 0:00:47]}  Rf8 {[%clk 0:00:25]} 34. Rg2 {[%clk 0:00:41]}  Rc3 {[%clk 0:00:23]} 35. Rd2 {[%clk 0:00:39]}  Rc8 {[%clk 0:00:16]} 36. Rfd4 {[%clk 0:00:38]}  Rc7 {[%clk 0:00:10]} 0-1

[Event "January 9 Early 2024"]
[Site "https://www.chess.com"]
[Date "2024.01.11"]
[Round "11"]
[White "Martinez Ramirez, Lennis"]
[Black "Marn, Jan"]
[Result "1-0"]
[Board "90"]
[TimeControl "180+1"]
[WhiteFideId "3509079"]
[BlackFideId "14619245"]
[WhiteElo "2712"]
[BlackElo "2497"]
[WhiteTeam "CUB"]
[BlackTeam "SLO"]
[WhiteClock "0:01:04"]
[BlackClock "0:00:06"]

1. d4 {[%clk 0:03:00]}  g6 {[%clk 0:02:54]} 2. e4 {[%clk 0:03:00]}  Bg7 {[%clk 0:02:55]} 3. Nc3 {[%clk 0:03:01]}  d6 {[%clk 0:02:55]} 4. Bc4 {[%clk 0:03:01]}  a6 {[%clk 0:02:54]} 5. a4 {[%clk 0:03:00]}  Nf6 {[%clk 0:02:53]} 6. Ba2 {[%clk 0:02:55]}  O-O {[%clk 0:02:47]} 7. Nf3 {[%clk 0:02:50]}  Nc6 {[%clk 0:02:46]} 8. h3 {[%clk 0:02:50]}  e5 {[%clk 0:02:46]} 9. dxe5 {[%clk 0:02:49]}  Nxe5 {[%clk 0:02:41]} 10. O-O {[%clk 0:02:44]}  Nfd7 {[%clk 0:02:31]} 11. Nd4 {[%clk 0:02:39]}  Nc5 {[%clk 0:02:16]} 12. Be3 {[%clk 0:02:37]}  Ne6 {[%clk 0:01:30]} 13. Nde2 {[%clk 0:02:37]}  g5 {[%clk 0:01:24]} 14. Ng3 {[%clk 0:02:34]}  Nf4 {[%clk 0:01:22]} 15. Qd2 {[%clk 0:02:33]}  Nxh3+ {[%clk 0:01:17]} 16. Kh2 {[%clk 0:02:33]}  Nf4 {[%clk 0:01:17]} 17. Bxf4 {[%clk 0:02:33]}  gxf4 {[%clk 0:01:17]} 18. Qxf4 {[%clk 0:02:33]}  Ng4+ {[%clk 0:01:11]} 19. Kg1 {[%clk 0:02:33]}  Qh4 {[%clk 0:01:09]} 20. Rfd1 {[%clk 0:02:16]}  Be5 {[%clk 0:01:06]} 21. Qf3 {[%clk 0:02:15]}  Be6 {[%clk 0:00:29]} 22. Nf5 {[%clk 0:02:14]}  Qh2+ {[%clk 0:00:27]} 23. Kf1 {[%clk 0:02:14]}  h5 {[%clk 0:00:20]} 24. Qh3 {[%clk 0:02:10]}  Qxh3 {[%clk 0:00:17]} 25. gxh3 {[%clk 0:02:11]}  Nh2+ {[%clk 0:00:18]} 26. Kg2 {[%clk 0:02:10]}  Bxf5 {[%clk 0:00:18]} 27. exf5 {[%clk 0:02:10]}  Kh8 {[%clk 0:00:18]} 28. Rd3 {[%clk 0:02:05]}  Rg8+ {[%clk 0:00:19]} 29. Kh1 {[%clk 0:02:05]}  Rg5 {[%clk 0:00:17]} 30. Ne2 {[%clk 0:01:57]}  Rxf5 {[%clk 0:00:14]} 31. f4 {[%clk 0:01:57]}  Bxf4 {[%clk 0:00:13]} 32. Nxf4 {[%clk 0:01:57]}  Rxf4 {[%clk 0:00:14]} 33. Kxh2 {[%clk 0:01:57]}  Rf2+ {[%clk 0:00:14]} 34. Kh1 {[%clk 0:01:57]}  Rxc2 {[%clk 0:00:15]} 35. Bxf7 {[%clk 0:01:55]}  Rf8 {[%clk 0:00:14]} 36. Rf3 {[%clk 0:01:51]}  Rxb2 {[%clk 0:00:14]} 37. Rg1 {[%clk 0:01:51]}  Re2 {[%clk 0:00:11]} 38. Rf5 {[%clk 0:01:50]}  Re5 {[%clk 0:00:11]} 39. Rf6 {[%clk 0:01:46]}  Kh7 {[%clk 0:00:09]} 40. Rg3 {[%clk 0:01:26]}  Re7 {[%clk 0:00:08]} 41. Bg6+ {[%clk 0:01:24]}  Kg7 {[%clk 0:00:09]} 42. Rxf8 {[%clk 0:01:24]}  Kxf8 {[%clk 0:00:10]} 43. Bxh5 {[%clk 0:01:25]}  Re4 {[%clk 0:00:11]} 44. Rg4 {[%clk 0:01:25]}  Rxg4 {[%clk 0:00:10]} 45. Bxg4 {[%clk 0:01:26]}  b5 {[%clk 0:00:11]} 46. a5 {[%clk 0:01:26]}  b4 {[%clk 0:00:11]} 47. Bc8 {[%clk 0:01:23]}  c5 {[%clk 0:00:07]} 48. Bxa6 {[%clk 0:01:24]}  d5 {[%clk 0:00:08]} 49. Kg2 {[%clk 0:01:19]}  c4 {[%clk 0:00:08]} 50. Bb7 {[%clk 0:01:04]}  d4 {[%clk 0:00:06]} 51. a6 {[%clk 0:01:04]} 1-0

[Event "January 9 Early 2024"]
[Site "https://www.chess.com"]
[Date "2024.01.11"]
[Round "11"]
[White "Tilahun , Abel Mathewos"]
[Black "Vargas, Mauricio"]
[Result "1-0"]
[Board "91"]
[TimeControl "180+1"]
[WhiteFideId "15702391"]
[BlackFideId "4404572"]
[WhiteElo "2041"]
[BlackElo "1854"]
[WhiteTeam "ETH"]
[BlackTeam "COL"]
[WhiteClock "0:00:40"]
[BlackClock "0:00:01"]

1. d4 {[%clk 0:03:00]}  d5 {[%clk 0:02:59]} 2. c4 {[%clk 0:03:00]}  e6 {[%clk 0:02:58]} 3. Nf3 {[%clk 0:03:01]}  c6 {[%clk 0:02:58]} 4. e3 {[%clk 0:03:00]}  Nf6 {[%clk 0:02:57]} 5. Nc3 {[%clk 0:03:00]}  Nbd7 {[%clk 0:02:57]} 6. Bd3 {[%clk 0:03:01]}  dxc4 {[%clk 0:02:57]} 7. Bxc4 {[%clk 0:03:01]}  b5 {[%clk 0:02:58]} 8. Bd3 {[%clk 0:03:01]}  Bd6 {[%clk 0:02:57]} 9. O-O {[%clk 0:03:02]}  O-O {[%clk 0:02:57]} 10. e4 {[%clk 0:03:02]}  e5 {[%clk 0:02:56]} 11. Bg5 {[%clk 0:03:01]}  exd4 {[%clk 0:02:52]} 12. Nxd4 {[%clk 0:03:00]}  Ne5 {[%clk 0:02:48]} 13. Bc2 {[%clk 0:03:00]}  Bg4 {[%clk 0:02:39]} 14. Qb1 {[%clk 0:02:48]}  Bc5 {[%clk 0:02:33]} 15. Nf5 {[%clk 0:02:45]}  Bxf5 {[%clk 0:02:20]} 16. exf5 {[%clk 0:02:44]}  Qd6 {[%clk 0:02:05]} 17. Bxf6 {[%clk 0:02:39]}  Qxf6 {[%clk 0:02:02]} 18. Ne4 {[%clk 0:02:39]}  Qe7 {[%clk 0:01:56]} 19. f6 {[%clk 0:02:38]}  gxf6 {[%clk 0:01:50]} 20. Ng3 {[%clk 0:02:28]}  Ng6 {[%clk 0:01:43]} 21. Be4 {[%clk 0:02:02]}  Rac8 {[%clk 0:01:39]} 22. Nf5 {[%clk 0:02:02]}  Qe5 {[%clk 0:01:32]} 23. Nh6+ {[%clk 0:01:37]}  Kg7 {[%clk 0:01:31]} 24. Ng4 {[%clk 0:01:36]}  Qg5 {[%clk 0:01:22]} 25. h3 {[%clk 0:01:13]}  Rfe8 {[%clk 0:01:13]} 26. b4 {[%clk 0:01:12]}  Bb6 {[%clk 0:01:11]} 27. Qc2 {[%clk 0:01:05]}  Bd4 {[%clk 0:00:23]} 28. Rad1 {[%clk 0:01:02]}  Bb6 {[%clk 0:00:10]} 29. Rd7 {[%clk 0:00:58]}  h5 {[%clk 0:00:07]} 30. Nh2 {[%clk 0:00:46]}  Ne5 {[%clk 0:00:05]} 31. Nf3 {[%clk 0:00:39]}  Nxf3+ {[%clk 0:00:01]} 32. Bxf3 {[%clk 0:00:40]} 1-0

[Event "January 9 Early 2024"]
[Site "https://www.chess.com"]
[Date "2024.01.11"]
[Round "11"]
[White "Salem, A.R. Saleh"]
[Black "Rohith Krishna S"]
[Result "0-1"]
[Board "93"]
[TimeControl "180+1"]
[WhiteFideId "9301348"]
[BlackFideId "46617051"]
[WhiteElo "2972"]
[BlackElo "2858"]
[WhiteTeam "UAE"]
[BlackTeam "IND"]
[WhiteClock "0:01:34"]
[BlackClock "0:00:15"]

1. d4 {[%clk 0:02:59]}  Nf6 {[%clk 0:02:59]} 2. c4 {[%clk 0:02:59]}  c5 {[%clk 0:02:58]} 3. d5 {[%clk 0:03:00]}  b5 {[%clk 0:02:58]} 4. cxb5 {[%clk 0:03:00]}  a6 {[%clk 0:02:59]} 5. bxa6 {[%clk 0:03:00]}  g6 {[%clk 0:02:59]} 6. Nc3 {[%clk 0:03:00]}  Bg7 {[%clk 0:02:59]} 7. e4 {[%clk 0:03:00]}  d6 {[%clk 0:02:59]} 8. Bb5+ {[%clk 0:02:58]}  Bd7 {[%clk 0:02:59]} 9. a4 {[%clk 0:02:54]}  O-O {[%clk 0:02:57]} 10. Nf3 {[%clk 0:02:51]}  Nxa6 {[%clk 0:02:57]} 11. O-O {[%clk 0:02:52]}  Bxb5 {[%clk 0:02:53]} 12. axb5 {[%clk 0:02:51]}  Nb4 {[%clk 0:02:53]} 13. Ra3 {[%clk 0:02:48]}  Nd7 {[%clk 0:02:48]} 14. Bd2 {[%clk 0:02:41]}  Nb6 {[%clk 0:02:46]} 15. Qb3 {[%clk 0:02:37]}  Nd3 {[%clk 0:02:24]} 16. Rfa1 {[%clk 0:02:36]}  Rxa3 {[%clk 0:02:24]} 17. bxa3 {[%clk 0:02:37]}  c4 {[%clk 0:02:23]} 18. Qc2 {[%clk 0:02:36]}  Qc7 {[%clk 0:02:15]} 19. Be3 {[%clk 0:02:24]}  Ra8 {[%clk 0:02:09]} 20. Nd4 {[%clk 0:02:19]}  Nc5 {[%clk 0:01:40]} 21. a4 {[%clk 0:02:16]}  Nbxa4 {[%clk 0:00:38]} 22. Nxa4 {[%clk 0:02:06]}  Bxd4 {[%clk 0:00:38]} 23. b6 {[%clk 0:01:49]}  Qd7 {[%clk 0:00:35]} 24. Bxd4 {[%clk 0:01:49]}  Nb3 {[%clk 0:00:32]} 25. Qxc4 {[%clk 0:01:33]}  Nxa1 {[%clk 0:00:31]} 26. Qc6 {[%clk 0:01:34]}  Rc8 {[%clk 0:00:15]} 0-1

[Event "January 9 Early 2024"]
[Site "https://www.chess.com"]
[Date "2024.01.11"]
[Round "11"]
[White "Paravyan, David"]
[Black "Yeremyan, Alen"]
[Result "1-0"]
[Board "94"]
[TimeControl "180+1"]
[WhiteFideId "4194985"]
[BlackFideId "13308998"]
[WhiteElo "3021"]
[BlackElo "2808"]
[WhiteTeam "FID"]
[BlackTeam "ARM"]
[WhiteClock "0:00:27"]
[BlackClock "0:00:37"]

1. e4 {[%clk 0:03:00]}  c5 {[%clk 0:02:58]} 2. Nf3 {[%clk 0:03:00]}  Nc6 {[%clk 0:02:58]} 3. Bb5 {[%clk 0:02:59]}  e6 {[%clk 0:02:58]} 4. O-O {[%clk 0:02:58]}  Nge7 {[%clk 0:02:58]} 5. d4 {[%clk 0:02:57]}  cxd4 {[%clk 0:02:58]} 6. Nxd4 {[%clk 0:02:58]}  Qc7 {[%clk 0:02:56]} 7. Be3 {[%clk 0:02:57]}  a6 {[%clk 0:02:55]} 8. Be2 {[%clk 0:02:57]}  Ng6 {[%clk 0:02:54]} 9. Qd2 {[%clk 0:02:55]}  Be7 {[%clk 0:02:49]} 10. c4 {[%clk 0:02:55]}  O-O {[%clk 0:02:49]} 11. Nc3 {[%clk 0:02:55]}  b6 {[%clk 0:02:44]} 12. Rac1 {[%clk 0:02:53]}  Bb7 {[%clk 0:02:43]} 13. Nd5 {[%clk 0:02:52]}  exd5 {[%clk 0:02:26]} 14. cxd5 {[%clk 0:02:53]}  Qe5 {[%clk 0:02:19]} 15. dxc6 {[%clk 0:02:52]}  dxc6 {[%clk 0:02:20]} 16. Nxc6 {[%clk 0:02:51]}  Bxc6 {[%clk 0:02:20]} 17. Rxc6 {[%clk 0:02:52]}  Rad8 {[%clk 0:02:13]} 18. Qc3 {[%clk 0:02:48]}  Qxe4 {[%clk 0:02:09]} 19. Bf3 {[%clk 0:02:49]}  Qf5 {[%clk 0:02:05]} 20. Bxb6 {[%clk 0:02:43]}  Rd3 {[%clk 0:01:55]} 21. Qc2 {[%clk 0:02:04]}  Rxf3 {[%clk 0:01:18]} 22. gxf3 {[%clk 0:02:05]}  Qxf3 {[%clk 0:01:19]} 23. Rc3 {[%clk 0:01:24]}  Qb7 {[%clk 0:01:11]} 24. Bc7 {[%clk 0:01:00]}  Bf6 {[%clk 0:00:58]} 25. Rb3 {[%clk 0:00:54]}  Qd5 {[%clk 0:00:58]} 26. Bg3 {[%clk 0:00:54]}  h5 {[%clk 0:00:57]} 27. Rd1 {[%clk 0:00:42]}  Qe6 {[%clk 0:00:53]} 28. Re3 {[%clk 0:00:40]}  Qxa2 {[%clk 0:00:45]} 29. Bd6 {[%clk 0:00:34]}  Rd8 {[%clk 0:00:41]} 30. Ba3 {[%clk 0:00:27]}  Rxd1+ {[%clk 0:00:38]} 31. Qxd1 {[%clk 0:00:28]}  Qc4 {[%clk 0:00:37]} 32. Re8+ {[%clk 0:00:27]} 1-0

[Event "January 9 Early 2024"]
[Site "https://www.chess.com"]
[Date "2024.01.11"]
[Round "11"]
[White "Mrudul Dehankar"]
[Black "Perez Gormaz, Matias"]
[Result "0-1"]
[Board "96"]
[TimeControl "180+1"]
[WhiteFideId "25096990"]
[BlackFideId "3406342"]
[WhiteElo "2389"]
[BlackElo "2637"]
[WhiteTeam "IND"]
[BlackTeam "CHI"]
[WhiteClock "0:00:01"]
[BlackClock "0:00:35"]

1. e4 {[%clk 0:02:56]}  a6 {[%clk 0:03:00]} 2. d4 {[%clk 0:02:52]}  b5 {[%clk 0:03:01]} 3. Nf3 {[%clk 0:02:51]}  Bb7 {[%clk 0:03:02]} 4. Bd3 {[%clk 0:02:51]}  e6 {[%clk 0:03:03]} 5. a4 {[%clk 0:02:47]}  Nf6 {[%clk 0:03:04]} 6. e5 {[%clk 0:02:45]}  Nd5 {[%clk 0:03:04]} 7. axb5 {[%clk 0:02:45]}  axb5 {[%clk 0:03:04]} 8. Rxa8 {[%clk 0:02:44]}  Bxa8 {[%clk 0:03:05]} 9. Bxb5 {[%clk 0:02:44]}  c5 {[%clk 0:03:06]} 10. O-O {[%clk 0:02:38]}  Be7 {[%clk 0:03:05]} 11. Bd3 {[%clk 0:02:18]}  cxd4 {[%clk 0:03:03]} 12. Nxd4 {[%clk 0:02:17]}  O-O {[%clk 0:03:03]} 13. Qe2 {[%clk 0:02:09]}  Qb6 {[%clk 0:03:02]} 14. Nb3 {[%clk 0:02:06]}  Nc6 {[%clk 0:03:01]} 15. Rd1 {[%clk 0:00:57]}  f5 {[%clk 0:03:00]} 16. exf6 {[%clk 0:00:56]}  Bxf6 {[%clk 0:03:00]} 17. Be4 {[%clk 0:00:53]}  Ne5 {[%clk 0:02:52]} 18. Na3 {[%clk 0:00:48]}  Qb4 {[%clk 0:02:32]} 19. Rd4 {[%clk 0:00:18]}  Qb6 {[%clk 0:02:28]} 20. Nc4 {[%clk 0:00:17]}  Qa7 {[%clk 0:02:21]} 21. Nxe5 {[%clk 0:00:16]}  Bxe5 {[%clk 0:02:22]} 22. Bxh7+ {[%clk 0:00:16]}  Kxh7 {[%clk 0:02:21]} 23. Qxe5 {[%clk 0:00:17]}  Kg8 {[%clk 0:02:04]} 24. h3 {[%clk 0:00:14]}  Rf5 {[%clk 0:02:01]} 25. Qg3 {[%clk 0:00:12]}  Bc6 {[%clk 0:01:55]} 26. Rg4 {[%clk 0:00:11]}  Rf7 {[%clk 0:01:55]} 27. Bh6 {[%clk 0:00:11]}  d6 {[%clk 0:01:51]} 28. c4 {[%clk 0:00:09]}  Nf6 {[%clk 0:01:48]} 29. Rg6 {[%clk 0:00:05]}  Ne4 {[%clk 0:01:41]} 30. Qe3 {[%clk 0:00:04]}  Kh7 {[%clk 0:01:33]} 31. Rxe6 {[%clk 0:00:01]}  Qa2 {[%clk 0:00:35]} 32. Qxe4+ {[%clk 0:00:01]}  Bxe4 {[%clk 0:00:34]} 33. Rxe4 {[%clk 0:00:01]}  Qb1+ {[%clk 0:00:35]} 0-1

[Event "January 9 Early 2024"]
[Site "https://www.chess.com"]
[Date "2024.01.11"]
[Round "11"]
[White "Ratnesan, Ranesh"]
[Black "Horak, Martin"]
[Result "0-1"]
[Board "98"]
[TimeControl "180+1"]
[WhiteFideId "439339"]
[BlackFideId "367095"]
[WhiteElo "2341"]
[BlackElo "2523"]
[WhiteTeam "ENG"]
[BlackTeam "CZE"]
[WhiteClock "0:00:09"]
[BlackClock "0:00:10"]

1. d4 {[%clk 0:02:58]}  d5 {[%clk 0:03:00]} 2. c4 {[%clk 0:02:57]}  e6 {[%clk 0:03:00]} 3. Nc3 {[%clk 0:02:57]}  Nf6 {[%clk 0:03:00]} 4. Bf4 {[%clk 0:02:57]}  Bb4 {[%clk 0:03:00]} 5. e3 {[%clk 0:02:57]}  Ne4 {[%clk 0:02:59]} 6. Qc2 {[%clk 0:02:55]}  c5 {[%clk 0:02:56]} 7. Bd3 {[%clk 0:02:55]}  cxd4 {[%clk 0:02:54]} 8. exd4 {[%clk 0:02:55]}  Nc6 {[%clk 0:02:14]} 9. Ne2 {[%clk 0:02:30]}  Nxc3 {[%clk 0:02:14]} 10. bxc3 {[%clk 0:02:29]}  Bd6 {[%clk 0:02:14]} 11. cxd5 {[%clk 0:02:24]}  exd5 {[%clk 0:02:13]} 12. O-O {[%clk 0:02:23]}  Be6 {[%clk 0:02:11]} 13. Rab1 {[%clk 0:02:20]}  Rb8 {[%clk 0:02:11]} 14. Bxd6 {[%clk 0:02:06]}  Qxd6 {[%clk 0:02:10]} 15. f4 {[%clk 0:02:07]}  Bd7 {[%clk 0:01:43]} 16. Rbe1 {[%clk 0:01:46]}  Kd8 {[%clk 0:01:37]} 17. f5 {[%clk 0:01:18]}  f6 {[%clk 0:01:34]} 18. Nf4 {[%clk 0:01:17]}  Re8 {[%clk 0:01:05]} 19. Rxe8+ {[%clk 0:01:06]}  Kxe8 {[%clk 0:01:06]} 20. Qd1 {[%clk 0:00:59]}  Kf8 {[%clk 0:00:54]} 21. Qf3 {[%clk 0:00:19]}  Ne7 {[%clk 0:00:53]} 22. g4 {[%clk 0:00:19]}  Rc8 {[%clk 0:00:51]} 23. Bc2 {[%clk 0:00:18]}  b5 {[%clk 0:00:26]} 24. Bb3 {[%clk 0:00:18]}  b4 {[%clk 0:00:23]} 25. cxb4 {[%clk 0:00:17]}  Qxb4 {[%clk 0:00:24]} 26. Nxd5 {[%clk 0:00:11]}  Qxd4+ {[%clk 0:00:23]} 27. Qe3 {[%clk 0:00:10]}  Qxg4+ {[%clk 0:00:22]} 28. Kf2 {[%clk 0:00:10]}  Qxf5+ {[%clk 0:00:15]} 29. Nf4 {[%clk 0:00:10]}  Ng6 {[%clk 0:00:11]} 30. Kg3 {[%clk 0:00:09]}  Qg5+ {[%clk 0:00:10]} 0-1

[Event "January 9 Early 2024"]
[Site "https://www.chess.com"]
[Date "2024.01.11"]
[Round "11"]
[White "Chan, Wei Xuan Timothy"]
[Black "Anton Guijarro, David"]
[Result "0-1"]
[Board "102"]
[TimeControl "180+1"]
[WhiteFideId "5802032"]
[BlackFideId "2285525"]
[WhiteElo "2717"]
[BlackElo "2971"]
[WhiteTeam "SGP"]
[BlackTeam "ESP"]
[WhiteClock "0:00:06"]
[BlackClock "0:00:54"]

1. e4 {[%clk 0:00:55]}  g6 {[%clk 0:03:00]} 2. d4 {[%clk 0:00:54]}  Bg7 {[%clk 0:02:59]} 3. Nc3 {[%clk 0:00:55]}  c6 {[%clk 0:02:59]} 4. Be3 {[%clk 0:00:56]}  d5 {[%clk 0:03:00]} 5. Nf3 {[%clk 0:00:56]}  dxe4 {[%clk 0:03:00]} 6. Nxe4 {[%clk 0:00:57]}  Nf6 {[%clk 0:03:00]} 7. Nxf6+ {[%clk 0:00:57]}  exf6 {[%clk 0:03:01]} 8. Qd2 {[%clk 0:00:57]}  O-O {[%clk 0:03:02]} 9. O-O-O {[%clk 0:00:57]}  Na6 {[%clk 0:03:01]} 10. h4 {[%clk 0:00:58]}  Bg4 {[%clk 0:03:01]} 11. Kb1 {[%clk 0:00:57]}  Nc7 {[%clk 0:03:01]} 12. Be2 {[%clk 0:00:57]}  Nd5 {[%clk 0:03:01]} 13. Nh2 {[%clk 0:00:57]}  Bxe2 {[%clk 0:03:00]} 14. Qxe2 {[%clk 0:00:58]}  Re8 {[%clk 0:02:58]} 15. h5 {[%clk 0:00:57]}  f5 {[%clk 0:02:58]} 16. Qd3 {[%clk 0:00:53]}  Nxe3 {[%clk 0:02:54]} 17. fxe3 {[%clk 0:00:53]}  Qg5 {[%clk 0:02:54]} 18. hxg6 {[%clk 0:00:51]}  hxg6 {[%clk 0:02:55]} 19. Nf3 {[%clk 0:00:46]}  Qxe3 {[%clk 0:02:53]} 20. Qc4 {[%clk 0:00:46]}  Rad8 {[%clk 0:02:49]} 21. a3 {[%clk 0:00:42]}  Qe2 {[%clk 0:02:43]} 22. Qb3 {[%clk 0:00:41]}  b5 {[%clk 0:02:27]} 23. Ng5 {[%clk 0:00:37]}  Qc4 {[%clk 0:02:21]} 24. Qh3 {[%clk 0:00:30]}  Rxd4 {[%clk 0:02:21]} 25. Rde1 {[%clk 0:00:22]}  Rdd8 {[%clk 0:02:09]} 26. Qh7+ {[%clk 0:00:20]}  Kf8 {[%clk 0:02:09]} 27. Qh2 {[%clk 0:00:20]}  Qd4 {[%clk 0:01:57]} 28. c3 {[%clk 0:00:17]}  Qd3+ {[%clk 0:01:53]} 29. Ka1 {[%clk 0:00:18]}  Rxe1+ {[%clk 0:01:28]} 30. Rxe1 {[%clk 0:00:17]}  Qd2 {[%clk 0:01:29]} 31. Nf3 {[%clk 0:00:17]}  Qd6 {[%clk 0:01:29]} 32. Qh4 {[%clk 0:00:17]}  Re8 {[%clk 0:01:23]} 33. Rh1 {[%clk 0:00:16]}  a5 {[%clk 0:01:19]} 34. Ng5 {[%clk 0:00:16]}  b4 {[%clk 0:01:13]} 35. Qc4 {[%clk 0:00:13]}  Qd5 {[%clk 0:01:11]} 36. Qxd5 {[%clk 0:00:12]}  cxd5 {[%clk 0:01:12]} 37. axb4 {[%clk 0:00:13]}  axb4 {[%clk 0:01:12]} 38. cxb4 {[%clk 0:00:14]}  Rb8 {[%clk 0:01:07]} 39. Ka2 {[%clk 0:00:09]}  Rxb4 {[%clk 0:01:05]} 40. b3 {[%clk 0:00:10]}  Rg4 {[%clk 0:01:06]} 41. Nf3 {[%clk 0:00:11]}  Rxg2+ {[%clk 0:01:05]} 42. Ka3 {[%clk 0:00:12]}  Rg3 {[%clk 0:01:04]} 43. Nd2 {[%clk 0:00:11]}  f4 {[%clk 0:01:04]} 44. Ka4 {[%clk 0:00:10]}  Bc3 {[%clk 0:01:02]} 45. Nb1 {[%clk 0:00:10]}  Be5 {[%clk 0:01:00]} 46. b4 {[%clk 0:00:08]}  f3 {[%clk 0:00:59]} 47. Rf1 {[%clk 0:00:08]}  Bd4 {[%clk 0:00:59]} 48. b5 {[%clk 0:00:06]}  f2 {[%clk 0:00:59]} 49. Nd2 {[%clk 0:00:06]}  Rg1 {[%clk 0:00:58]} 50. Ka5 {[%clk 0:00:05]}  Bc3+ {[%clk 0:00:55]} 51. Ka6 {[%clk 0:00:06]}  Bxd2 {[%clk 0:00:55]} 52. Rxf2 {[%clk 0:00:06]}  Ra1+ {[%clk 0:00:55]} 53. Kb7 {[%clk 0:00:06]}  Be3 {[%clk 0:00:54]} 0-1

[Event "January 9 Early 2024"]
[Site "https://www.chess.com"]
[Date "2024.01.11"]
[Round "11"]
[White "Kraiouchkine, Nikita"]
[Black "Gavrilov, Maxim"]
[Result "1/2-1/2"]
[Board "103"]
[TimeControl "180+1"]
[WhiteFideId "2607140"]
[BlackFideId "24271454"]
[WhiteElo "2624"]
[BlackElo "2469"]
[WhiteTeam "CAN"]
[BlackTeam "RUS"]
[WhiteClock "0:00:55"]
[BlackClock "0:00:16"]

1. e4 {[%clk 0:03:00]}  c5 {[%clk 0:02:59]} 2. Nf3 {[%clk 0:03:01]}  d6 {[%clk 0:02:59]} 3. d4 {[%clk 0:03:01]}  cxd4 {[%clk 0:03:00]} 4. Nxd4 {[%clk 0:03:02]}  Nf6 {[%clk 0:03:00]} 5. Nc3 {[%clk 0:03:02]}  a6 {[%clk 0:03:01]} 6. Bc4 {[%clk 0:03:02]}  e6 {[%clk 0:02:57]} 7. O-O {[%clk 0:03:02]}  Be7 {[%clk 0:02:57]} 8. Bb3 {[%clk 0:03:02]}  O-O {[%clk 0:02:56]} 9. f4 {[%clk 0:03:02]}  b5 {[%clk 0:02:52]} 10. f5 {[%clk 0:03:00]}  e5 {[%clk 0:02:50]} 11. Nde2 {[%clk 0:03:01]}  Bb7 {[%clk 0:02:49]} 12. Ng3 {[%clk 0:03:00]}  Nc6 {[%clk 0:02:47]} 13. Nh5 {[%clk 0:02:48]}  Nd4 {[%clk 0:02:30]} 14. Nxf6+ {[%clk 0:02:45]}  Bxf6 {[%clk 0:02:28]} 15. Bd5 {[%clk 0:02:44]}  Qb6 {[%clk 0:02:06]} 16. Kh1 {[%clk 0:02:26]}  Rac8 {[%clk 0:02:00]} 17. Be3 {[%clk 0:02:17]}  b4 {[%clk 0:01:56]} 18. Ne2 {[%clk 0:02:07]}  Bxd5 {[%clk 0:01:53]} 19. exd5 {[%clk 0:02:08]}  Qb5 {[%clk 0:01:39]} 20. Nxd4 {[%clk 0:02:06]}  exd4 {[%clk 0:01:39]} 21. Bxd4 {[%clk 0:02:07]}  Bxd4 {[%clk 0:01:36]} 22. Qxd4 {[%clk 0:02:08]}  Rxc2 {[%clk 0:01:34]} 23. f6 {[%clk 0:02:08]}  Qe2 {[%clk 0:01:26]} 24. Rg1 {[%clk 0:02:08]}  Rxb2 {[%clk 0:01:18]} 25. Rae1 {[%clk 0:02:02]}  Qf2 {[%clk 0:01:12]} 26. Qxf2 {[%clk 0:01:38]}  Rxf2 {[%clk 0:01:13]} 27. Rgf1 {[%clk 0:01:38]}  Rxf6 {[%clk 0:01:06]} 28. Rxf6 {[%clk 0:01:37]}  gxf6 {[%clk 0:01:07]} 29. h3 {[%clk 0:01:26]}  Rc8 {[%clk 0:01:06]} 30. Re2 {[%clk 0:01:25]}  Rc5 {[%clk 0:01:01]} 31. Rd2 {[%clk 0:01:25]}  Kg7 {[%clk 0:00:59]} 32. Kh2 {[%clk 0:01:25]}  f5 {[%clk 0:00:59]} 33. Kg3 {[%clk 0:01:25]}  Kf6 {[%clk 0:00:59]} 34. Kf4 {[%clk 0:01:25]}  Rc4+ {[%clk 0:00:59]} 35. Ke3 {[%clk 0:01:25]}  Ke5 {[%clk 0:00:59]} 36. Kf3 {[%clk 0:01:18]}  Rf4+ {[%clk 0:00:56]} 37. Kg3 {[%clk 0:01:18]}  Rd4 {[%clk 0:00:56]} 38. Re2+ {[%clk 0:01:18]}  Kxd5 {[%clk 0:00:56]} 39. Re7 {[%clk 0:01:18]}  Rd2 {[%clk 0:00:46]} 40. Rxf7 {[%clk 0:01:18]}  Ke6 {[%clk 0:00:45]} 41. Rxh7 {[%clk 0:01:18]}  Rxa2 {[%clk 0:00:45]} 42. Rb7 {[%clk 0:01:19]}  a5 {[%clk 0:00:44]} 43. h4 {[%clk 0:01:19]}  Ra1 {[%clk 0:00:39]} 44. h5 {[%clk 0:01:17]}  Rh1 {[%clk 0:00:38]} 45. Rb5 {[%clk 0:01:17]}  Rxh5 {[%clk 0:00:35]} 46. Kf3 {[%clk 0:01:17]}  Rh8 {[%clk 0:00:29]} 47. Rxa5 {[%clk 0:01:17]}  Rb8 {[%clk 0:00:29]} 48. Ra2 {[%clk 0:01:17]}  b3 {[%clk 0:00:30]} 49. Rb2 {[%clk 0:01:17]}  Ke5 {[%clk 0:00:30]} 50. Ke3 {[%clk 0:01:17]}  d5 {[%clk 0:00:30]} 51. Kd3 {[%clk 0:01:17]}  Kf4 {[%clk 0:00:31]} 52. Kd4 {[%clk 0:01:17]}  Rb5 {[%clk 0:00:28]} 53. Rf2+ {[%clk 0:01:10]}  Kg3 {[%clk 0:00:24]} 54. Rb2 {[%clk 0:01:11]}  f4 {[%clk 0:00:21]} 55. Ke5 {[%clk 0:01:10]}  Kg4 {[%clk 0:00:20]} 56. Kd4 {[%clk 0:00:55]}  Kf5 {[%clk 0:00:20]} 57. Kc3 {[%clk 0:00:55]}  Ke4 {[%clk 0:00:18]} 58. Re2+ {[%clk 0:00:55]}  Kf5 {[%clk 0:00:18]} 59. Rb2 {[%clk 0:00:55]}  Rb8 {[%clk 0:00:16]} 60. Kd4 {[%clk 0:00:56]}  Rb5 {[%clk 0:00:16]} 61. Kc3 {[%clk 0:00:55]} 1/2-1/2